bitfinex/quotes_BTCUSD_20250213
["timestamp","ask_amount","ask_price","bid_price","bid_amount"]
[1739473159128,0.0001066,96109.0,96108.0,1.10317765]
[1739473161525,0.0001066,96109.0,96108.0,0.56797765]
[1739473165427,0.0001066,96109.0,96108.0,1.10317765]
[1739473165911,0.06908758,96149.0,96110.0,0.023]
[1739473166146,0.06908758,96149.0,96129.0,0.15]
[1739473166147,0.02078758,96149.0,96129.0,0.15]
[1739473166360,0.103351,96145.0,96133.0,0.0807]
[1739473166584,0.103351,96145.0,96134.0,0.63770365]
[1739473166787,0.259365,96145.0,96140.0,0.156021]
[1739473167021,0.0001065,96146.0,96140.0,0.10250365]
[1739473167022,0.612273,96144.0,96140.0,0.10250365]
[1739473167495,0.681008,96143.0,96134.0,0.5352]
[1739473167704,0.208024,96143.0,96135.0,0.10250365]
[1739473167930,0.435961,96142.0,96135.0,0.10250365]
[1739473168175,0.871918,96141.0,96135.0,0.10250365]
[1739473168393,0.156024,96140.0,96135.0,0.10250365]
[1739473168609,0.151023,96140.0,96135.0,0.10250365]
[1739473168838,0.156025,96138.0,96135.0,0.10250365]
[1739473169074,0.654006,96137.0,96135.0,0.10250365]
[1739473169297,0.01823032,96146.0,96145.0,0.306014]
[1739473169567,0.01823032,96146.0,96145.0,0.40851765]
[1739473171223,0.50904832,96146.0,96145.0,0.40851765]
[1739473171465,0.43170832,96146.0,96145.0,0.40851765]
[1739473171727,0.0001065,96146.0,96145.0,0.48931765]
[1739473172904,0.0001065,96146.0,96145.0,0.50331765]
[1739473173153,0.0001065,96146.0,96145.0,0.26650365]
[1739473173421,0.1561185,96146.0,96145.0,0.164]
[1739473173870,1.3115085,96146.0,96145.0,0.164]
[1739473175570,1.2252365,96146.0,96145.0,0.164]
[1739473176422,1.2252365,96146.0,96145.0,0.42251765]
[1739473176423,0.2307955,96146.0,96145.0,0.42251765]
[1739473176628,0.2307955,96146.0,96145.0,0.26650365]
[1739473176987,0.3868075,96146.0,96145.0,0.26650365]
[1739473177447,0.2141405,96146.0,96145.0,0.26650365]
[1739473177670,0.1304105,96146.0,96145.0,0.26650365]
[1739473177874,0.2864225,96146.0,96145.0,0.26650365]
[1739473178075,0.1304105,96146.0,96145.0,0.26650365]
[1739473179904,0.0001065,96146.0,96145.0,0.42251765]
[1739473180822,0.3502395,96146.0,96145.0,0.42251765]
[1739473181248,0.5062515,96146.0,96145.0,0.26650365]
[1739473181452,0.4110295,96146.0,96145.0,0.26650365]
[1739473181875,0.3775895,96146.0,96145.0,0.26650365]
[1739473183124,0.3630245,96146.0,96145.0,0.42251765]
[1739473183331,0.3515465,96146.0,96145.0,0.26650365]
[1739473185083,0.3302665,96146.0,96145.0,0.26650365]
[1739473185992,0.2415115,96146.0,96145.0,0.26650365]
[1739473186409,0.3975235,96146.0,96145.0,0.26650365]
[1739473186763,0.2415115,96146.0,96145.0,0.26650365]
[1739473187198,0.2193345,96146.0,96145.0,0.26650365]
[1739473187760,0.2055095,96146.0,96145.0,0.26650365]
[1739473188781,0.3615215,96146.0,96145.0,0.26650365]
[1739473189553,0.1561185,96146.0,96145.0,0.26650365]
[1739473189991,1.5246355,96146.0,96145.0,0.164]
[1739473191046,1.1591605,96146.0,96145.0,0.164]
[1739473191409,0.9583855,96146.0,96145.0,0.164]
[1739473191628,0.8052895,96146.0,96145.0,0.164]
[1739473192250,0.90779315,96146.0,96145.0,0.014]
[1739473192426,0.8524895,96146.0,96145.0,0.014]
[1739473193084,0.8524895,96146.0,96145.0,0.007]
[1739473193987,0.15602,96141.0,96140.0,0.00022365]
[1739473194217,1.975298,96141.0,96140.0,0.00022365]
[1739473194401,0.15602,96141.0,96140.0,0.00022365]
[1739473194603,1.978799,96141.0,96140.0,0.00022365]
[1739473195013,1.905411,96141.0,96140.0,0.00022365]
[1739473196151,1.905411,96141.0,96140.0,0.00122365]
[1739473197182,1.67469,96141.0,96140.0,0.00122365]
[1739473197449,1.591966,96141.0,96140.0,0.00122365]
[1739473197656,0.989647,96141.0,96140.0,0.00122365]
[1739473197765,0.748215,96141.0,96140.0,0.00122365]
[1739473198837,0.452168,96141.0,96140.0,0.00122365]
[1739473199248,0.138166,96141.0,96140.0,0.00122365]
[1739473199541,0.208025,96143.0,96140.0,0.00122365]
[1739473199744,0.15602,96141.0,96140.0,0.00122365]
[1739473200393,1.750393,96141.0,96140.0,0.00122365]
[1739473200595,3.23634765,96141.0,96140.0,0.00122365]
[1739473200946,3.449122,96141.0,96140.0,0.00122365]
[1739473201095,2.829985,96141.0,96140.0,0.00122365]
[1739473201297,1.659862,96141.0,96140.0,0.00122365]
[1739473201678,1.659862,96141.0,96140.0,0.00022365]
[1739473201880,1.659862,96141.0,96118.0,0.00772669]
[1739473201881,0.156056,96119.0,96118.0,0.00772669]
[1739473202155,0.156056,96119.0,96118.0,0.09120742]
[1739473202156,1.49002,96119.0,96118.0,0.09120742]
[1739473202362,0.156077,96107.0,96105.0,0.15]
[1739473202568,0.14637039,96120.0,96107.0,0.15]
[1739473202799,0.256483,96119.0,96108.0,0.10250365]
[1739473203006,0.156068,96112.0,96109.0,0.15]
[1739473203215,0.156068,96112.0,96104.0,0.53533175]
[1739473203216,0.156068,96112.0,96111.0,0.15]
[1739473203415,0.376493,96112.0,96111.0,0.25250365]
[1739473203621,0.15604,96129.0,96111.0,0.33200365]
[1739473203820,0.02039631,96136.0,96120.0,0.156054]
[1739473203821,0.531079,96128.0,96120.0,0.156054]
[1739473204049,0.156043,96127.0,96121.0,0.10250365]
[1739473204253,0.401224,96127.0,96122.0,0.15]
[1739473204405,0.156031,96135.0,96127.0,0.156042]
[1739473204606,0.156034,96133.0,96128.0,0.10250365]
[1739473204809,0.0001065,96146.0,96128.0,0.10250365]
[1739473204810,0.156038,96131.0,96128.0,0.10250365]
[1739473205010,0.172262,96130.0,96128.0,0.10250365]
[1739473205217,0.208021,96144.0,96128.0,0.10250365]
[1739473205416,0.922198,96142.0,96129.0,0.15]
[1739473205596,0.584544,96141.0,96130.0,0.10250365]
[1739473205796,0.516033,96142.0,96132.0,0.156035]
[1739473206001,0.57804,96142.0,96133.0,0.10250365]
[1739473206223,0.156027,96137.0,96133.0,0.10250365]
[1739473206386,0.295856,96136.0,96133.0,0.10250365]
[1739473206595,0.0001065,96146.0,96133.0,0.10250365]
[1739473206596,0.208029,96140.0,96133.0,0.10250365]
[1739473206805,0.156026,96138.0,96133.0,0.10250365]
[1739473207006,0.340348,96137.0,96133.0,0.10250365]
[1739473207200,0.96979,96142.0,96133.0,0.10250365]
[1739473207486,0.812657,96142.0,96133.0,0.10250365]
[1739473207672,0.0001065,96146.0,96133.0,0.10250365]
[1739473207673,0.263497,96141.0,96137.0,0.156025]
[1739473207826,0.263497,96141.0,96131.0,0.5352]
[1739473207827,0.563262,96144.0,96138.0,0.10250365]
[1739473208047,0.316775,96143.0,96138.0,0.10250365]
[1739473208246,0.156024,96139.0,96138.0,0.10250365]
[1739473208457,0.737953,96139.0,96138.0,0.10250365]
[1739473208650,0.507336,96139.0,96138.0,0.10250365]
[1739473208876,0.230443,96139.0,96138.0,0.10250365]
[1739473209092,0.147553,96139.0,96138.0,0.10250365]
[1739473209283,0.0001065,96146.0,96138.0,0.10250365]
[1739473209483,0.15602,96142.0,96138.0,0.10250365]
[1739473209805,0.05223627,96141.0,96138.0,0.10250365]
[1739473210175,0.15602,96141.0,96138.0,0.10250365]
[1739473210419,0.681895,96140.0,96138.0,0.10250365]
[1739473210632,0.156024,96139.0,96138.0,0.10250365]
[1739473210842,0.156032,96134.0,96133.0,0.5352]
[1739473211048,1.21824,96134.0,96133.0,0.5352]
[1739473211265,1.839507,96134.0,96133.0,0.5352]
[1739473211468,1.827603,96134.0,96133.0,0.5352]
[1739473211693,1.782511,96134.0,96133.0,0.5352]
[1739473212288,1.447609,96134.0,96133.0,0.5352]
[1739473212523,1.405592,96134.0,96133.0,0.5382]
[1739473212751,1.405592,96134.0,96133.0,0.5402]
[1739473212972,1.50809565,96134.0,96133.0,0.5402]
[1739473213185,1.405592,96134.0,96133.0,0.5382]
[1739473213625,0.156032,96134.0,96133.0,0.5382]
[1739473214014,0.617715,96134.0,96133.0,0.5382]
[1739473214232,0.51459,96134.0,96133.0,0.5382]
[1739473214420,0.499575,96134.0,96133.0,0.5352]
[1739473215556,0.348692,96134.0,96133.0,0.5352]
[1739473215767,0.19266,96134.0,96127.0,0.0793]
[1739473215948,0.156029,96136.0,96128.0,0.31055865]
[1739473216149,0.15604,96129.0,96128.0,0.25250365]
[1739473216456,0.141074,96129.0,96128.0,0.40854465]
[1739473216631,0.725369,96136.0,96129.0,0.15]
[1739473216834,1.129699,96138.0,96132.0,0.156033]
[1739473217042,0.208034,96138.0,96130.0,0.10250365]
[1739473217219,0.156037,96131.0,96130.0,0.10250365]
[1739473217422,0.806378,96131.0,96130.0,0.10250365]
[1739473217720,0.262798,96131.0,96130.0,0.10250365]
[1739473217950,0.156037,96131.0,96130.0,0.10250365]
[1739473218153,0.156037,96131.0,96130.0,0.25250365]
[1739473218328,1.060323,96131.0,96130.0,0.25250365]
[1739473218509,0.759706,96132.0,96130.0,0.25250365]
[1739473218718,0.759706,96132.0,96131.0,0.15]
[1739473218927,0.0001065,96141.0,96131.0,0.10250365]
[1739473219148,0.156033,96134.0,96132.0,0.10250365]
[1739473219371,0.156032,96135.0,96132.0,0.10250365]
[1739473219596,0.14647689,96141.0,96132.0,0.10250365]
[1739473219823,0.156033,96133.0,96132.0,0.25250365]
[1739473219973,0.901429,96133.0,96132.0,0.25250365]
[1739473220198,0.482706,96133.0,96132.0,0.25250365]
[1739473220408,0.482706,96133.0,96132.0,0.001]
[1739473220811,0.4244017,96133.0,96110.0,0.0754]
[1739473221113,1.604599,96132.0,96112.0,0.15]
[1739473221332,0.156061,96117.0,96114.0,0.15]
[1739473221595,0.836905,96116.0,96115.0,0.10250365]
[1739473222456,0.680844,96116.0,96115.0,0.10250365]
[1739473222729,0.0213254,96134.0,96115.0,0.10250365]
[1739473222892,0.156037,96131.0,96115.0,0.10250365]
[1739473223094,0.928972,96130.0,96115.0,0.10250365]
[1739473223298,0.156061,96116.0,96115.0,0.10250365]
[1739473223492,1.238881,96116.0,96115.0,0.10550365]
[1739473223695,1.345534,96116.0,96115.0,0.10550365]
[1739473223905,0.448977,96116.0,96115.0,0.003]
[1739473224098,0.415583,96116.0,96115.0,0.003]
[1739473224267,0.571644,96116.0,96115.0,0.003]
[1739473225106,0.337368,96116.0,96115.0,0.003]
[1739473225755,0.144214,96116.0,96115.0,0.003]
[1739473225946,0.156061,96116.0,96115.0,0.006]
[1739473226251,0.406871,96116.0,96115.0,0.006]
[1739473226372,0.519146,96120.0,96115.0,0.006]
[1739473226571,0.156055,96120.0,96115.0,0.006]
[1739473226779,0.0452,96147.0,96117.0,0.15]
[1739473226990,1.550301,96140.0,96118.0,0.10250365]
[1739473227191,1.550301,96140.0,96121.0,0.15]
[1739473227405,0.156038,96130.0,96123.0,0.15]
[1739473227638,1.105019,96129.0,96125.0,0.15]
[1739473227866,0.156039,96130.0,96126.0,0.10250365]
[1739473228156,0.97253,96129.0,96126.0,0.10250365]
[1739473228364,0.917715,96129.0,96126.0,0.10250365]
[1739473228569,1.113246,96132.0,96126.0,0.10250365]
[1739473228766,0.156038,96131.0,96126.0,0.10250365]
[1739473229002,0.933626,96130.0,96126.0,0.10550365]
[1739473229169,0.0001065,96141.0,96129.0,0.0801]
[1739473229381,0.20804,96135.0,96130.0,0.10250365]
[1739473229582,0.156037,96131.0,96130.0,0.10250365]
[1739473229806,0.641107,96131.0,96130.0,0.10250365]
[1739473230010,0.660296,96131.0,96130.0,0.10250365]
[1739473230259,0.605096,96131.0,96130.0,0.25250365]
[1739473231823,0.584198,96131.0,96130.0,0.25550365]
[1739473232028,0.584198,96131.0,96130.0,0.25850365]
[1739473232442,0.428161,96131.0,96130.0,0.25850365]
[1739473232652,0.01629854,96159.0,96140.0,0.237522]
[1739473232831,0.398917,96145.0,96140.0,0.18400365]
[1739473233072,0.515024,96144.0,96140.0,0.18400365]
[1739473233282,0.257784,96143.0,96140.0,0.18400365]
[1739473233497,0.0001065,96146.0,96140.0,0.34002565]
[1739473233699,0.134619,96145.0,96140.0,0.34002565]
[1739473233914,0.42467,96144.0,96140.0,0.34002565]
[1739473234117,0.432371,96143.0,96140.0,0.34002565]
[1739473234332,0.0001065,96146.0,96140.0,0.34002565]
[1739473234750,0.372452,96145.0,96140.0,0.34002565]
[1739473234928,0.0001065,96146.0,96140.0,0.34002565]
[1739473235140,0.0001065,96146.0,96140.0,0.49002565]
[1739473235353,0.0001065,96146.0,96140.0,1.02522565]
[1739473235792,0.0001065,96146.0,96140.0,1.02922565]
[1739473235987,0.0001065,96146.0,96140.0,1.03222565]
[1739473238170,0.0001065,96146.0,96140.0,1.02922565]
[1739473238345,0.0001065,96146.0,96140.0,1.02522565]
[1739473238544,0.0001065,96146.0,96140.0,1.02822565]
[1739473238750,0.0001065,96146.0,96140.0,1.03522565]
[1739473238960,0.19193385,96149.0,96141.0,0.15]
[1739473239173,1.771348,96148.0,96143.0,0.15]
[1739473239383,1.771348,96148.0,96140.0,0.6237]
[1739473239384,0.156012,96146.0,96145.0,0.15]
[1739473239598,1.46906,96146.0,96145.0,0.25250365]
[1739473239802,1.478197,96146.0,96145.0,0.25250365]
[1739473240009,1.290142,96146.0,96145.0,0.25250365]
[1739473240218,1.198305,96148.0,96145.0,0.25250365]
[1739473240438,0.324789,96147.0,96145.0,0.25250365]
[1739473240659,1.40481,96150.0,96145.0,0.25250365]
[1739473240856,1.075639,96149.0,96145.0,0.25250365]
[1739473241063,0.156009,96148.0,96145.0,0.25250365]
[1739473241474,1.168161,96147.0,96145.0,0.25250365]
[1739473241719,1.088686,96147.0,96145.0,0.25250365]
[1739473241921,0.15601,96148.0,96145.0,0.25250365]
[1739473242243,1.127083,96147.0,96145.0,0.26350365]
[1739473242550,0.807081,96146.0,96145.0,0.25750365]
[1739473242754,0.807081,96146.0,96145.0,0.25850365]
[1739473242971,0.807081,96146.0,96145.0,0.25650365]
[1739473243453,0.807081,96146.0,96145.0,0.26050365]
[1739473243756,0.628569,96146.0,96145.0,0.26050365]
[1739473243994,0.548494,96146.0,96145.0,0.26050365]
[1739473244141,0.28389,96146.0,96145.0,0.26050365]
[1739473244352,0.35093,96147.0,96145.0,0.25650365]
[1739473244551,0.41113,96147.0,96145.0,0.25250365]
[1739473244905,0.41113,96147.0,96145.0,0.25650365]
[1739473245106,0.567141,96147.0,96145.0,0.25250365]
[1739473245325,0.532341,96146.0,96145.0,0.25250365]
[1739473245497,0.532341,96146.0,96145.0,0.26050365]
[1739473245703,0.532341,96146.0,96145.0,0.25650365]
[1739473246439,0.0001065,96148.0,96145.0,0.40851765]
[1739473246697,0.0001065,96148.0,96145.0,0.41251765]
[1739473247438,0.0001065,96148.0,96147.0,0.306011]
[1739473247646,0.0001065,96148.0,96147.0,0.40851465]
[1739473248698,0.0001065,96148.0,96147.0,0.41251465]
[1739473248908,0.0001065,96148.0,96147.0,0.54441465]
[1739473249114,0.0001065,96148.0,96147.0,0.54841465]
[1739473250175,0.1561155,96148.0,96147.0,0.158]
[1739473250783,0.0001065,96148.0,96147.0,0.314011]
[1739473250982,0.0001065,96148.0,96147.0,0.158]
[1739473252139,0.5522995,96148.0,96147.0,0.26050365]
[1739473252336,0.0001065,96148.0,96147.0,0.26050365]
[1739473253197,0.4718515,96148.0,96147.0,0.26050365]
[1739473253745,0.0001065,96148.0,96147.0,0.26050365]
[1739473255205,0.0001065,96148.0,96147.0,0.41651465]
[1739473258548,0.0001065,96148.0,96147.0,0.26050365]
[1739473258971,1.7699725,96148.0,96147.0,0.26050365]
[1739473259179,1.7684595,96148.0,96147.0,0.26050365]
[1739473259620,1.7472225,96148.0,96147.0,0.26050365]
[1739473259853,1.3517795,96148.0,96147.0,0.26050365]
[1739473260050,1.2797615,96148.0,96147.0,0.41651465]
[1739473260253,1.4357705,96148.0,96147.0,0.158]
[1739473260502,1.2912425,96148.0,96147.0,0.158]
[1739473260711,1.2011505,96148.0,96147.0,0.158]
[1739473260912,0.5402785,96148.0,96147.0,0.158]
[1739473261147,0.0001065,96148.0,96147.0,0.40851465]
[1739473261343,0.0001065,96148.0,96147.0,0.41251465]
[1739473261543,0.2522205,96148.0,96147.0,0.25950365]
[1739473261746,0.0001065,96148.0,96147.0,0.25550365]
[1739473262086,0.4021295,96148.0,96147.0,0.25950365]
[1739473262295,0.1664635,96148.0,96147.0,0.41551465]
[1739473262498,0.1664635,96148.0,96147.0,0.25650365]
[1739473263111,0.1664635,96148.0,96147.0,0.41251465]
[1739473263520,0.1664635,96148.0,96147.0,0.25650365]
[1739473263855,0.1664635,96148.0,96147.0,0.25950365]
[1739473264255,0.1664635,96148.0,96147.0,0.41551465]
[1739473264936,0.0001065,96148.0,96147.0,0.49541465]
[1739473265340,0.0001065,96148.0,96147.0,0.54081465]
[1739473266253,0.0001065,96148.0,96147.0,1.07601465]
[1739473266688,0.0001066,96171.0,96147.0,1.07601465]
[1739473266689,0.0001066,96171.0,96170.0,0.305973]
[1739473266905,0.0001066,96171.0,96170.0,1.02357665]
[1739473267116,2e-08,96181.0,96171.0,0.023]
[1739473267363,2e-08,96181.0,96180.0,0.305957]
[1739473267573,2e-08,96181.0,96180.0,0.40846065]
[1739473268025,2e-08,96181.0,96180.0,0.25250365]
[1739473268238,2e-08,96181.0,96180.0,0.78770365]
[1739473268654,2e-08,96181.0,96180.0,0.79470365]
[1739473268861,2e-08,96181.0,96180.0,0.80170365]
[1739473269068,0.15595502,96181.0,96180.0,0.5422]
[1739473269295,1.19181102,96181.0,96180.0,0.5422]
[1739473269514,1.21087102,96181.0,96180.0,0.6992]
[1739473269723,1.21087102,96181.0,96180.0,0.5422]
[1739473269932,1.21087102,96181.0,96180.0,0.5352]
[1739473270142,1.21564694,96181.0,96179.0,0.00770096]
[1739473270326,0.16073094,96181.0,96180.0,0.007]
[1739473271412,0.16073094,96181.0,96163.0,0.08348073]
[1739473271413,0.155983,96164.0,96163.0,0.08348073]
[1739473271621,0.952015,96164.0,96163.0,0.18598438]
[1739473271827,0.99484069,96164.0,96163.0,0.18598438]
[1739473272026,0.99484069,96164.0,96163.0,0.10250365]
[1739473272248,0.58816269,96164.0,96161.0,0.5352]
[1739473272444,0.700557,96163.0,96161.0,0.5352]
[1739473272649,0.549822,96162.0,96161.0,0.5352]
[1739473272854,0.55453669,96162.0,96161.0,0.5352]
[1739473273077,0.15917869,96162.0,96161.0,0.5352]
[1739473273314,0.00471469,96162.0,96161.0,0.79369165]
[1739473273508,0.00471469,96162.0,96161.0,0.63770365]
[1739473273715,0.14637039,96180.0,96161.0,0.5352]
[1739473273924,0.155986,96163.0,96161.0,0.5352]
[1739473274094,1.397212,96162.0,96161.0,0.5372]
[1739473274304,1.337951,96162.0,96161.0,0.5372]
[1739473274510,1.34266569,96162.0,96161.0,0.002]
[1739473274711,1.17640169,96162.0,96146.0,0.5352]
[1739473274925,0.828495,96161.0,96152.0,0.15]
[1739473275090,0.809203,96161.0,96152.0,0.10250365]
[1739473275293,0.812134,96161.0,96152.0,0.10250365]
[1739473275689,0.00471469,96160.0,96153.0,0.15]
[1739473275893,0.80684869,96160.0,96153.0,0.306]
[1739473276078,0.00471469,96160.0,96155.0,0.15]
[1739473276280,0.00471469,96160.0,96157.0,0.155993]
[1739473276466,0.00471469,96160.0,96155.0,0.15]
[1739473276467,0.155982,96165.0,96158.0,0.10250365]
[1739473276684,0.447244,96164.0,96161.0,0.002]
[1739473276890,0.00471469,96164.0,96161.0,0.002]
[1739473277093,0.427077,96163.0,96158.0,0.10250365]
[1739473277268,0.0001065,96162.0,96158.0,0.10250365]
[1739473277461,0.426323,96161.0,96158.0,0.10250365]
[1739473277955,0.0001065,96162.0,96158.0,0.10250365]
[1739473277956,0.11970869,96160.0,96158.0,0.10250365]
[1739473278199,0.386216,96159.0,96158.0,0.10250365]
[1739473278599,0.39093069,96159.0,96158.0,0.10250365]
[1739473278831,0.59292169,96159.0,96158.0,0.10250365]
[1739473279370,0.59292169,96159.0,96158.0,0.10550365]
[1739473279569,0.59292169,96159.0,96158.0,0.10250365]
[1739473279931,0.59292169,96159.0,96158.0,0.10550365]
[1739473280130,0.59292169,96159.0,96158.0,0.10850365]
[1739473282921,0.74891269,96159.0,96158.0,0.10850365]
[1739473283134,0.74891269,96159.0,96158.0,0.006]
[1739473283966,0.85141634,96159.0,96158.0,0.003]
[1739473284177,0.86675233,96159.0,96158.0,0.003]
[1739473284314,0.76424868,96159.0,96158.0,0.001]
[1739473284759,0.76424868,96159.0,96158.0,0.003]
[1739473284962,0.60825768,96159.0,96145.0,0.00022365]
[1739473285163,0.156009,96148.0,96145.0,0.00022365]
[1739473285370,2.71747196,96148.0,96145.0,0.00022365]
[1739473285571,0.156012,96146.0,96145.0,0.00022365]
[1739473285791,3.83008,96146.0,96145.0,0.00022365]
[1739473286018,3.933513,96146.0,96145.0,0.00022365]
[1739473287811,3.936513,96146.0,96145.0,0.00122365]
[1739473287980,3.08755273,96146.0,96145.0,0.00222365]
[1739473288394,3.08355273,96146.0,96145.0,0.00022365]
[1739473288752,3.08455273,96146.0,96145.0,0.00022365]
[1739473288954,3.02049673,96146.0,96145.0,0.00022365]
[1739473289154,2.94221573,96146.0,96145.0,0.00022365]
[1739473289652,0.17789173,96146.0,96145.0,0.00022365]
[1739473289871,3.20594673,96146.0,96145.0,0.00022365]
[1739473290070,3.16858073,96146.0,96145.0,0.00022365]
[1739473290479,3.17158073,96146.0,96145.0,0.00122365]
[1739473291299,3.37658803,96146.0,96145.0,0.00122365]
[1739473292036,3.16758073,96146.0,96145.0,0.00022365]
[1739473292227,0.16833,96146.0,96145.0,0.15723765]
[1739473292386,0.004,96146.0,96145.0,0.4097413]
[1739473292586,0.004,96146.0,96145.0,0.4910413]
[1739473293986,0.14637039,96157.0,96146.0,0.15]
[1739473294190,0.14637039,96157.0,96156.0,0.305996]
[1739473294440,0.113365,96157.0,96156.0,0.15]
[1739473294590,0.175648,96158.0,96157.0,0.15]
[1739473294791,0.178817,96158.0,96157.0,0.25250365]
[1739473294996,0.01579711,96159.0,96157.0,0.25250365]
[1739473295193,0.0001065,96162.0,96159.0,0.15]
[1739473295397,0.124625,96161.0,96160.0,0.25250365]
[1739473295679,0.280613,96161.0,96160.0,0.25250365]
[1739473296452,0.124625,96161.0,96160.0,0.25250365]
[1739473296710,0.0001065,96162.0,96160.0,0.25250365]
[1739473297006,0.01589118,96162.0,96160.0,0.25250365]
[1739473297238,0.01589118,96162.0,96161.0,0.15]
[1739473297463,0.0001065,96162.0,96161.0,0.40849165]
[1739473297866,0.0001065,96162.0,96161.0,0.25250365]
[1739473298070,0.1426145,96162.0,96161.0,0.25250365]
[1739473298208,0.01527222,96162.0,96161.0,0.25250365]
[1739473298426,0.0001065,96162.0,96161.0,0.25250365]
[1739473298629,0.0001065,96162.0,96161.0,0.25450365]
[1739473298847,0.0001065,96162.0,96161.0,0.25550365]
[1739473299415,0.0001065,96162.0,96161.0,1.02369165]
[1739473299628,0.0001065,96162.0,96161.0,0.86770365]
[1739473299832,0.0001065,96162.0,96161.0,1.02369165]
[1739473300163,0.0001065,96162.0,96161.0,1.02269165]
[1739473300714,0.2144105,96162.0,96161.0,1.02169165]
[1739473300928,0.4167265,96162.0,96161.0,1.02669165]
[1739473301125,0.0001065,96162.0,96161.0,1.02069165]
[1739473301346,0.18920125,96162.0,96161.0,1.03269165]
[1739473301552,0.0001065,96162.0,96161.0,1.03269165]
[1739473301732,0.0001065,96162.0,96161.0,1.02669165]
[1739473302154,0.0001065,96162.0,96161.0,1.03169165]
[1739473303563,0.0001065,96162.0,96161.0,1.05469165]
[1739473304123,0.0001065,96162.0,96161.0,1.04969165]
[1739473304329,0.0001065,96162.0,96161.0,1.05569165]
[1739473304746,0.0001065,96162.0,96161.0,1.04369165]
[1739473305062,0.0001065,96162.0,96161.0,1.05569165]
[1739473305279,0.0001065,96162.0,96161.0,1.04969165]
[1739473305484,0.0001065,96162.0,96161.0,1.04369165]
[1739473305685,0.0001065,96162.0,96161.0,1.05069165]
[1739473305920,0.0001065,96162.0,96161.0,1.05769165]
[1739473306351,0.0001065,96162.0,96161.0,1.10289165]
[1739473306954,0.0001065,96162.0,96161.0,1.09589165]
[1739473307155,0.0001065,96162.0,96161.0,1.10289165]
[1739473314064,5e-07,96162.0,96161.0,1.10289165]
[1739473319669,5e-07,96162.0,96161.0,1.1105727]
[1739473320250,5e-07,96162.0,96161.0,1.1205727]
[1739473320454,5e-07,96162.0,96161.0,1.1135727]
[1739473320839,5e-07,96162.0,96161.0,1.1205727]
[1739473321261,5e-07,96162.0,96161.0,1.1135727]
[1739473322071,5e-07,96162.0,96161.0,1.1065727]
[1739473322304,5e-07,96162.0,96161.0,1.1205727]
[1739473322722,5e-07,96162.0,96161.0,1.1135727]
[1739473324328,5e-07,96162.0,96161.0,1.1065727]
[1739473324750,5e-07,96162.0,96161.0,1.11379635]
[1739473325479,2e-08,96181.0,96175.0,0.432165]
[1739473325682,2e-08,96181.0,96175.0,1.09286865]
[1739473326296,0.0001064,96186.0,96185.0,0.305949]
[1739473326297,4.2e-07,96186.0,96185.0,0.305949]
[1739473326524,0.0001066,96198.0,96197.0,0.40963]
[1739473326525,6.2e-07,96198.0,96197.0,0.40963]
[1739473326724,0.00013226,96198.0,96197.0,1.09653365]
[1739473327421,0.00013226,96198.0,96197.0,0.94363365]
[1739473327936,0.00013226,96198.0,96197.0,0.96663365]
[1739473328127,0.00013226,96198.0,96197.0,0.94363365]
[1739473328329,0.00013226,96198.0,96197.0,0.9583147]
[1739473329946,0.00013226,96198.0,96197.0,0.2801147]
[1739473330567,0.00013226,96198.0,96197.0,0.2731147]
[1739473330793,0.15606026,96198.0,96197.0,0.1241847]
[1739473330998,0.00013226,96198.0,96197.0,0.1241847]
[1739473331196,0.75901075,96198.0,96197.0,0.1241847]
[1739473331398,0.75901075,96198.0,96197.0,0.00768105]
[1739473331630,0.75901075,96198.0,96197.0,0.006]
[1739473331798,0.75901075,96198.0,96197.0,0.012]
[1739473332330,0.75901075,96198.0,96197.0,0.006]
[1739473332478,0.75901075,96198.0,96197.0,0.156]
[1739473332678,0.60308275,96198.0,96197.0,0.156]
[1739473332921,0.33888875,96198.0,96197.0,0.156]
[1739473333128,0.49481675,96198.0,96197.0,0.161]
[1739473333505,0.49481675,96198.0,96197.0,0.155]
[1739473333710,0.49481675,96198.0,96197.0,0.16]
[1739473334483,0.21133575,96198.0,96197.0,0.26250365]
[1739473334684,0.00515375,96198.0,96197.0,0.41843365]
[1739473335122,0.00013226,96198.0,96197.0,0.41843365]
[1739473335340,0.00013226,96198.0,96197.0,0.26250365]
[1739473335507,0.15606026,96198.0,96197.0,0.26250365]
[1739473335687,0.56816074,96198.0,96197.0,0.26250365]
[1739473335890,0.30700474,96198.0,96197.0,0.26250365]
[1739473336069,0.30700474,96198.0,96197.0,0.16]
[1739473336286,0.46293274,96198.0,96197.0,0.01]
[1739473337458,0.63271561,96198.0,96197.0,0.01]
[1739473337635,0.54483274,96198.0,96197.0,0.01]
[1739473342356,0.54483274,96198.0,96168.0,0.09248102]
[1739473342357,0.155975,96169.0,96168.0,0.09248102]
[1739473342775,0.16091546,96169.0,96168.0,0.09248102]
[1739473342980,0.93901546,96169.0,96168.0,0.09248102]
[1739473343188,0.63404446,96169.0,96168.0,0.09248102]
[1739473343406,0.55320046,96169.0,96168.0,0.09248102]
[1739473343814,0.00494046,96169.0,96168.0,0.35096167]
[1739473344072,0.00494046,96169.0,96168.0,0.50096167]
[1739473344253,0.207923,96189.0,96176.0,0.15]
[1739473344455,0.207923,96189.0,96169.0,0.15]
[1739473344456,0.64797,96188.0,96178.0,0.15]
[1739473344662,0.155953,96183.0,96180.0,0.15]
[1739473344871,0.20793,96186.0,96182.0,0.15]
[1739473345069,0.63188708,96185.0,96182.0,0.15]
[1739473345273,0.155952,96183.0,96182.0,0.15]
[1739473345478,0.842089,96183.0,96182.0,0.15]
[1739473345876,0.207957,96174.0,96170.0,0.15]
[1739473346083,0.155972,96171.0,96170.0,0.25250365]
[1739473346289,0.985021,96171.0,96170.0,0.25250365]
[1739473346629,1.186693,96171.0,96170.0,0.25250365]
[1739473346843,1.181493,96171.0,96170.0,0.25250365]
[1739473347222,1.025521,96171.0,96161.0,0.15022365]
[1739473347426,0.207968,96169.0,96163.0,0.15]
[1739473347630,0.774945,96168.0,96165.0,0.15]
[1739473347832,0.14637039,96190.0,96167.0,0.15]
[1739473348040,0.155967,96174.0,96170.0,0.005]
[1739473348252,0.514498,96173.0,96167.0,0.15]
[1739473348384,0.155977,96168.0,96167.0,0.15]
[1739473348587,1.117122,96168.0,96167.0,0.15]